fUST/lending_fUST_20260208
["ID","MTS","AMOUNT","RATE_DAILY","PERIOD"]
[404775705,1770533440292,-1454.39566196,0.00052054,120]
[404775707,1770533440302,-500.0,0.00052054,120]
[404775709,1770533440310,-500.0,0.00052054,120]
[404775711,1770533440319,-500.0,0.00052054,120]
[404775713,1770533440330,-14211.15,0.00052054,90]
[404775715,1770533440339,-518.44280681,0.00052054,120]
[404775717,1770533440348,-500.0,0.00052054,120]
[404775719,1770533440357,-727.58,0.00052054,120]
[404775721,1770533440367,-500.0,0.00052054,120]
[404775723,1770533440376,-500.0,0.00052054,120]
[404775725,1770533440385,-292.04904527,0.00052054,120]
[404775727,1770533440394,-362.12538288,0.00052054,120]
[404775729,1770533440403,-500.0,0.00052054,7]
[404775731,1770533440412,-500.0,0.00052054,120]
[404775733,1770533440421,-500.0,0.00052054,120]
[404775735,1770533440431,-500.0,0.00052054,120]
[404775737,1770533440441,-500.0,0.00052054,120]
[404775739,1770533440452,-553.28,0.00052054,120]
[404775740,1770533440460,-500.0,0.00052054,120]
[404775742,1770533440471,-500.0,0.00052054,120]
[404775744,1770533440479,-264.98152932,0.00052054,120]
[404775910,1770533446276,-816.6,0.00052044,10]
[404775911,1770533446286,-235.01847068,0.00052054,120]
[404775912,1770533446296,-500.0,0.00052054,120]
[404775913,1770533446305,-500.0,0.00052054,120]
[404775914,1770533446314,-500.0,0.00052054,120]
[404775915,1770533446323,-500.0,0.00052054,120]
[404775916,1770533446332,-500.0,0.00052054,120]
[404775917,1770533446341,-257.70293683,0.00052054,120]
[404775919,1770533448346,-0.02039798,0.00052054,120]
[404775920,1770533449269,-242.27666519,0.00052054,120]
[404775921,1770533449279,-500.0,0.00052054,120]
[404775922,1770533449288,-500.0,0.00052054,120]
[404775923,1770533449298,-596.87143084,0.00052054,120]
[404775924,1770533449307,-500.0,0.00052054,120]
[404775925,1770533449317,-500.0,0.00052054,120]
[404775926,1770533449326,-500.0,0.00052054,120]
[404775927,1770533449335,-500.0,0.00052054,120]
[404775928,1770533449345,-500.0,0.00052054,120]
[404775929,1770533449354,-500.0,0.00052054,120]
[404775930,1770533449363,-500.0,0.00052054,120]
[404775931,1770533449372,-7913.61,0.00052054,120]
[404775932,1770533449382,-500.0,0.00052054,120]
[404775933,1770533449393,-500.0,0.00052054,120]
[404775934,1770533449402,-500.0,0.00052054,120]
[404775935,1770533449411,-500.0,0.00052054,120]
[404775936,1770533449421,-500.0,0.00052054,120]
[404775937,1770533449430,-500.0,0.00052054,120]
[404775938,1770533449439,-172.9181187,0.00052054,120]
[404775939,1770533449448,-606.20836864,0.00052054,120]
[404775940,1770533449458,-514.86655952,0.00052054,8]
[404775941,1770533449469,-212.6134873,0.00052054,120]
[404775942,1770533449479,-500.0,0.00052054,120]
[404775943,1770533449490,-1549.62,0.00052054,120]
[404775944,1770533449500,-500.0,0.00052054,120]
[404775945,1770533449510,-500.0,0.00052054,120]
[404775946,1770533449519,-500.0,0.00052054,120]
[404775947,1770533449528,-260.35264187,0.00052054,120]
[404775948,1770533449537,-819.69,0.00052054,30]
[404775949,1770533449547,-563.29441547,0.00052054,120]
[404775950,1770533449556,-500.0,0.00052054,120]
[404775951,1770533449566,-178.66483733,0.00052054,120]
[404775952,1770533449576,-1148.63,0.00052054,120]
[404775953,1770533449586,-500.0,0.00052054,120]
[404775954,1770533449596,-281.4665089,0.00052054,120]
[404775955,1770533449606,-512.22873212,0.00052054,120]
[404775956,1770533449616,-159.16167899,0.00052054,120]
[404775957,1770533449627,-260.51183216,0.00052054,120]
[404775958,1770533449636,-283.86649164,0.00052054,120]
[404775959,1770533449647,-2034.01,0.00052054,120]
[404775960,1770533449656,-574.25153301,0.00052054,120]
[404775961,1770533449666,-500.0,0.00052054,120]
[404775962,1770533449676,-257.756228,0.00052054,120]
[404775963,1770533449685,-500.0,0.00052054,2]
[404775964,1770533449695,-500.0,0.00052054,120]
[404775965,1770533449705,-23414.82487914,0.00052054,20]
[404775966,1770533449769,-2748.8137026,0.00052054,20]
[404775971,1770533609016,330.0,0.00025,2]
[404775973,1770533836166,3920.02,0.00025,2]
[404775974,1770533836189,1079.98,0.00025,2]
[404775975,1770533858119,5000.0,0.00025,2]
[404775976,1770533881313,3920.03,0.00025,2]
[404775977,1770533881334,1079.97,0.00025,2]
[404776120,1770533896857,5000.0,0.00025,2]
[404776124,1770533905462,3328.61592564,0.00025,2]
[404776129,1770533913752,591.42407436,0.00025,2]
[404776130,1770533913775,3613.41543824,0.00025,2]
[404776131,1770533922415,5000.0,0.00025,2]
[404776132,1770533930227,1923.15766073,0.00025,2]
[404776133,1770533945072,3076.85233927,0.00025,2]
[404776134,1770533945097,1923.14766073,0.00025,2]
[404776135,1770533967048,5000.0,0.00025,2]
[404776136,1770533986533,200.0,0.00025,2]
[404776137,1770533989868,2876.86233927,0.00025,2]
[404776138,1770533989889,2123.13766073,0.00025,2]
[404776139,1770534011931,5000.0,0.00025,2]
[404776141,1770534034423,2876.87233927,0.00025,2]
[404776169,1770534227709,5000.0,0.00025,2]
[404776170,1770534249805,5000.0,0.00025,2]
[404776171,1770534272623,0.01,0.00025,2]
[404776172,1770534272646,4999.99,0.00025,2]
[404776173,1770534275289,10000.0,0.00030136,120]
[404776175,1770534295469,5000.0,0.00025,2]
[404776176,1770534317826,0.02,0.00025,2]
[404776177,1770534317848,4999.98,0.00025,2]
[404776179,1770534340167,5000.0,0.00025,2]
[404776180,1770534363171,0.03,0.00025,2]
[404776181,1770534363194,2123.09766073,0.00025,2]
[404776183,1770534391353,-5265.2711242,0.00026575,2]
[404776190,1770534435030,500.0,0.000271,7]
[404776206,1770534451447,502.64,0.000251,7]
[404776207,1770534555143,-150.0,0.00030082,7]
[404776208,1770534555173,-150.0,0.00030082,7]
[404776209,1770534555222,-1214.19638323,0.00030101,2]
[404776210,1770534557110,-3903.39538734,0.00030101,2]
[404776211,1770534557131,-150.0,0.00030192,4]
[404776212,1770534557151,-150.0,0.00030192,4]
[404776213,1770534557171,-28.19206331,0.00030233,4]
[404776214,1770534573352,-273.80793669,0.00030233,4]
[404776215,1770534573372,-301.0,0.00030233,4]
[404776216,1770534573394,-150.0,0.00030288,4]
[404776217,1770534573416,-150.0,0.00030288,4]
[404776218,1770534573437,-150.0,0.00030356,6]
[404776219,1770534573457,-150.0,0.00030356,6]
[404776220,1770534573477,-801.0,0.00033769,30]
[404776221,1770534573497,-258.408891,0.00035644,2]
[404776222,1770534574000,668.0,0.00035644,30]
[404776223,1770534576307,679.0,0.00035644,30]
[404776224,1770534577974,622.0,0.00035644,30]
[404776225,1770534579937,571.0,0.00035644,30]
[404776226,1770534581516,523.0,0.00035644,30]
[404776227,1770534582802,479.0,0.00035644,30]
[404776228,1770534584943,439.0,0.00035644,30]
[404776229,1770534588007,626.02282761,0.00035644,30]
[404776269,1770534638328,-301.0,0.00031213,2]
[404776271,1770534638338,-150.0,0.00031213,2]
[404776273,1770534638347,-150.0,0.00031213,4]
[404776274,1770534638357,-150.0,0.00031213,4]
[404776276,1770534638369,-150.0,0.00031213,7]
[404776278,1770534638379,-581.97717239,0.00035644,30]
[404776280,1770534638388,-632.0,0.00039109,2]
[404776281,1770534638398,-1374.0,0.00039109,2]
[404776283,1770534638408,-2160.0,0.00039109,2]
[404776285,1770534638422,-400.154,0.00039109,2]
[404776287,1770534638432,-180.0,0.00039109,2]
[404776289,1770534638443,-421.0,0.00039109,2]
[404776290,1770534638454,-421.0,0.00039109,2]
[404776291,1770534638463,-2556.8219716,0.00040016,2]
[404776292,1770534638473,-632.0,0.00042109,2]
[404776293,1770534638484,-1372.0,0.00042109,2]
[404776294,1770534638494,-2160.0,0.00042109,2]
[404776295,1770534638504,-180.0,0.00042109,2]
[404776296,1770534638514,-395.714,0.00042109,2]
[404776297,1770534638523,-421.0,0.00042109,2]
[404776298,1770534638532,-500.0,0.00043154,31]
[404776299,1770534638542,-513.74459373,0.00043155,2]
[404776300,1770534638552,-924.74026871,0.00043155,2]
[404776301,1770534638562,-565.12674055,0.00043155,2]
[404776302,1770534638572,-1017.22813298,0.00043155,2]
[404776303,1770534638583,-425.218866,0.00044249,2]
[404776304,1770534638592,-676.25711886,0.00044433,3]
[404776305,1770534638602,-743.89294995,0.00044433,3]
[404776306,1770534638611,-632.0,0.00045109,2]
[404776307,1770534638620,-2154.0,0.00045109,2]
[404776308,1770534638630,-180.0,0.00045109,2]
[404776309,1770534638639,-421.0,0.00045109,2]
[404776310,1770534638649,-150.0,0.00046112,120]
[404776311,1770534638659,-425.218866,0.00046112,2]
[404776312,1770534638668,-150.0,0.00046604,7]
[404776313,1770534638678,-150.0,0.00046604,10]
[404776314,1770534638687,-425.218866,0.00047974,2]
[404776315,1770534638697,-167.808,0.00048109,2]
[404776316,1770534638707,-359.293,0.00048109,2]
[404776317,1770534638717,-177.0,0.00048112,120]
[404776318,1770534638726,-425.218866,0.00049837,2]
[404776319,1770534638735,-204.0,0.00050112,120]
[404776320,1770534638745,-433.65,0.00050136,30]
[404776321,1770534638754,-433.65,0.00050821,33]
[404776322,1770534638764,-61402.629084,0.00051,120]
[404776323,1770534638773,-433.65,0.00051506,36]
[404776324,1770534638783,-425.218866,0.000517,2]
[404776325,1770534638792,-3384.81992366,0.00051953,24]
[404776326,1770534638805,-486.67509685,0.00051999,120]
[404776327,1770534638815,-49438.80890061,0.00052,120]
[404776328,1770534638825,-2519.92207302,0.00052043,4]
[404776329,1770534638834,-8545.75916861,0.00052044,4]
[404776345,1770534646458,-1533.92912349,0.00052044,4]
[404776346,1770534646468,-906.0,0.00052044,120]
[404776347,1770534646477,-500.0,0.00052053,120]
[404776348,1770534646489,-500.0,0.00052053,120]
[404776349,1770534646499,-500.0,0.00052053,120]
[404776350,1770534646508,-500.0,0.00052053,120]
[404776351,1770534646517,-151.0,0.00052053,120]
[404776352,1770534646527,-500.0,0.00052053,120]
[404776353,1770534646536,-156.587,0.00052053,120]
[404776354,1770534646545,-500.0,0.00052053,120]
[404776355,1770534646554,-162.380719,0.00052053,120]
[404776356,1770534646563,-250.0,0.00052053,120]
[404776357,1770534646573,-500.0,0.00052053,120]
[404776358,1770534646582,-250.0,0.00052053,120]
[404776359,1770534646592,-168.3888056,0.00052053,120]
[404776360,1770534646601,-500.0,0.00052053,120]
[404776361,1770534646611,-250.0,0.00052053,120]
[404776362,1770534646620,-174.61919141,0.00052053,120]
[404776363,1770534646629,-500.0,0.00052053,120]
[404776364,1770534646638,-250.0,0.00052053,120]
[404776365,1770534646647,-181.08010149,0.00052053,120]
[404776366,1770534646657,-500.0,0.00052053,120]
[404776367,1770534646666,-187.78006525,0.00052053,120]
[404776368,1770534646675,-250.0,0.00052053,120]
[404776369,1770534646684,-500.0,0.00052053,120]
[404776370,1770534646694,-194.72792766,0.00052053,120]
[404776371,1770534646703,-201.93286099,0.00052053,120]
[404776372,1770534646712,-209.40437684,0.00052053,120]
[404776373,1770534646721,-217.15233878,0.00052053,120]
[404776374,1770534646731,-250.0,0.00052053,120]
[404776375,1770534646740,-225.18697532,0.00052053,120]
[404776376,1770534646751,-233.51889341,0.00052053,120]
[404776377,1770534646760,-250.0,0.00052053,120]
[404776378,1770534646769,-316.81660547,0.00052053,120]
[404776379,1770534646779,-250.0,0.00052053,120]
[404776380,1770534646788,-250.0,0.00052053,120]
[404776381,1770534646799,-250.0,0.00052053,120]
[404776382,1770534646809,-250.0,0.00052053,120]
[404776383,1770534646818,-250.0,0.00052053,120]
[404776384,1770534646828,-250.0,0.00052053,120]
[404776385,1770534646837,-250.0,0.00052053,120]
[404776386,1770534646847,-250.0,0.00052053,120]
[404776387,1770534646856,-250.0,0.00052053,120]
[404776388,1770534646866,-250.0,0.00052053,120]
[404776389,1770534646876,-250.0,0.00052053,120]
[404776390,1770534646886,-250.0,0.00052053,120]
[404776391,1770534646896,-250.0,0.00052053,120]
[404776392,1770534646907,-250.0,0.00052053,120]
[404776393,1770534646916,-250.0,0.00052053,120]
[404776394,1770534646925,-250.0,0.00052053,120]
[404776395,1770534646935,-250.0,0.00052053,120]
[404776396,1770534646945,-250.0,0.00052053,120]
[404776397,1770534646955,-260.20398362,0.00052053,120]
[404776398,1770534646964,-500.0,0.00052054,120]
[404776399,1770534646974,-500.0,0.00052054,120]
[404776400,1770534646983,-2537.92640661,0.00052054,2]
[404776401,1770534646996,-4556.75251676,0.00052054,2]
[404776403,1770534648394,-2947.73585593,0.00052054,2]
[404776404,1770534648404,-1211.84998087,0.00052054,120]
[404776405,1770534648415,-500.0,0.00052054,120]
[404776406,1770534648427,-500.0,0.00052054,120]
[404776407,1770534648436,-4799.81056325,0.00052054,2]
[404776459,1770535199053,212.0,0.00030137,120]
[404776460,1770535205108,500.0,0.00013273,2]
[404776461,1770535205166,1000.0,0.00013821,2]
[404776462,1770535205222,1500.0,0.00014368,2]
[404776463,1770535205282,690.95439841,0.00014916,2]
[404776464,1770535206696,500.0,0.00013273,2]
[404776465,1770535206756,929.26398239,0.00013821,2]
[404776466,1770535207350,1200.0,0.00030137,120]
[404776467,1770535210326,503.04797727,0.00013273,2]
[404776468,1770535210486,444.04698874,0.00013699,2]
[404776469,1770535213949,238.71388037,0.00013699,2]
[404776470,1770535215527,155.38166569,0.00013699,2]
[404776471,1770535217749,439.63963557,0.00013273,2]
[404776473,1770535222847,500.0,0.00013699,2]
[404776474,1770535222904,1000.0,0.00014247,2]
[404776475,1770535222958,1500.0,0.00014795,2]
[404776476,1770535223400,503.16088937,0.00013821,2]
[404776477,1770535224278,500.0,0.00013699,2]
[404776478,1770535224308,1000.0,0.00014247,2]
[404776479,1770535224364,1004.73893852,0.00014795,2]
[404776480,1770535226266,500.0,0.00013699,2]
[404776481,1770535226340,282.00604208,0.00014247,2]
[404776482,1770535226367,717.99395792,0.00014247,2]
[404776483,1770535226395,1500.0,0.00014795,2]
[404776484,1770535226501,500.0,0.00013273,2]
[404776485,1770535226940,501.75085749,0.00013273,2]
[404776486,1770535229120,500.02538864,0.00013273,2]
[404776487,1770535231250,502.76007462,0.00013699,2]
[404776488,1770535268025,283.05394465,0.00013273,2]
[404776489,1770535268661,500.0,0.00013699,2]
[404776490,1770535268716,1000.0,0.00014247,2]
[404776491,1770535268775,1500.0,0.00014795,2]
[404776492,1770535270341,1000.0,0.00013821,2]
[404776493,1770535270372,500.0,0.00013273,2]
[404776494,1770535270417,500.0,0.00013273,2]
[404776495,1770535270446,494.41577668,0.00014368,2]
[404776496,1770535270472,6.96305076,0.00014368,2]
[404776497,1770535270501,504.05990296,0.00013821,2]
[404776498,1770535270969,205.6632325,0.00013273,2]
[404776499,1770535281442,502.60230823,0.00013699,2]
[404776500,1770535282689,500.0,0.00013273,2]
[404776501,1770535282727,1500.0,0.00014368,2]
[404776502,1770535282786,2000.0,0.00014916,2]
[404776503,1770535282849,1000.0,0.00013821,2]
[404776504,1770535284065,500.0,0.00013273,2]
[404776505,1770535284131,912.25381556,0.00013821,2]
[404776506,1770535284588,500.47949008,0.00013273,2]
[404776507,1770535285103,500.0,0.00013699,2]
[404776508,1770535285142,596.71882567,0.00013699,2]
[404776509,1770535285176,534.40798224,0.00014247,2]
[404776510,1770535286617,236.851392,0.00013273,2]
[404776511,1770535286646,263.148608,0.00013273,2]
[404776512,1770535286679,349.92011938,0.00013821,2]
[404776513,1770535288366,353.39494486,0.00013699,2]
[404776514,1770535292818,500.0,0.00013273,2]
[404776515,1770535292858,1000.0,0.00013821,2]
[404776516,1770535292911,1500.0,0.00014368,2]
[404776517,1770535292969,2000.0,0.00014916,2]
[404776520,1770535331479,500.0,0.00013273,2]
[404776521,1770535331645,1000.0,0.00013821,2]
[404776522,1770535331677,1500.0,0.00014368,2]
[404776523,1770535331732,1033.53632776,0.00014916,2]
[404776524,1770535331757,966.46367224,0.00014916,2]
[404776535,1770535337221,269.67851883,0.00013821,2]
[404776536,1770535337274,500.0,0.00013273,2]
[404776544,1770535341788,500.0,0.00013273,2]
[404776545,1770535341828,1000.0,0.00013821,2]
[404776546,1770535341883,1500.0,0.00014368,2]
[404776547,1770535341954,1368.80008468,0.00014916,2]
[404776549,1770535345552,300.0,0.00013673,2]
[404776550,1770535345615,600.0,0.00014221,2]
[404776551,1770535345673,900.0,0.00014768,2]
[404776552,1770535410771,6280.0,0.00030136,120]
[404776553,1770535507535,500.0,0.00014247,2]
[404776554,1770535507576,500.0,0.00013699,2]
[404776555,1770535511754,500.0,0.00013699,2]
[404776556,1770535511788,595.05772425,0.00014247,2]
[404776557,1770535511813,409.13772701,0.00014247,2]
[404776558,1770535513981,500.0,0.00013273,2]
[404776559,1770535514042,500.0,0.00013699,2]
[404776560,1770535514109,770.97253927,0.00014247,2]
[404776561,1770535518958,426.64503198,0.00013273,2]
[404776562,1770535519896,500.0,0.00013273,2]
[404776563,1770535519948,1000.0,0.00013821,2]
[404776564,1770535520001,1500.0,0.00014368,2]
[404776565,1770535520056,2000.0,0.00014916,2]
[404776566,1770535520114,2393.24470174,0.00015464,2]
[404776567,1770535520141,106.75529826,0.00015464,2]
[404776568,1770535520220,528.73272409,0.00016012,2]
[404776569,1770535520992,1000.0,0.00013821,2]
[404776570,1770535521047,500.0,0.00013273,2]
[404776571,1770535521101,2000.0,0.00014916,2]
[404776572,1770535521158,1500.0,0.00014368,2]
[404776573,1770535521353,2500.0,0.00015464,2]
[404776574,1770535521388,1046.48398893,0.00016012,2]
[404776575,1770535530087,300.0,0.00013673,2]
[404776576,1770535530144,518.02798872,0.00014768,2]
[404776577,1770535530170,381.97201128,0.00014768,2]
[404776578,1770535530201,340.55280025,0.00015316,2]
[404776579,1770535530245,600.0,0.00014221,2]
[404776580,1770535533345,500.0,0.00013699,2]
[404776581,1770535533395,1000.0,0.00014247,2]
[404776582,1770535533451,1500.0,0.00014795,2]
[404776583,1770535533502,2000.0,0.00015342,2]
[404776584,1770535533558,1000.0,0.0001589,2]
[404776585,1770535534469,500.0,0.00013273,2]
[404776586,1770535534522,1000.0,0.00013821,2]
[404776587,1770535534585,1177.47518847,0.00014368,2]
[404776588,1770535534616,322.52481153,0.00014368,2]
[404776589,1770535534648,2000.0,0.00014916,2]
[404776590,1770535534681,2201.03217182,0.00015464,2]
[404776629,1770535566590,500.0,0.00013273,2]
[404776630,1770535566620,1008.68321747,0.00014916,2]
[404776631,1770535566653,1000.0,0.00013821,2]
[404776632,1770535566711,1500.0,0.00014368,2]
[404776712,1770535594760,500.0,0.00013699,2]
[404776713,1770535594810,967.75979918,0.00014247,2]
[404776714,1770535594837,32.24020082,0.00014247,2]
[404776715,1770535594868,502.46371749,0.00014795,2]
[404776716,1770535596516,500.0,0.00013699,2]
[404776717,1770535596576,399.90730919,0.00014247,2]
[404776718,1770535596829,500.0,0.00013699,2]
[404776719,1770535596877,1000.0,0.00014247,2]
[404776720,1770535596936,500.0,0.00014795,2]
[404776726,1770535600729,504.02976408,0.00013699,2]
[404776832,1770535704156,6061.35900842,0.0002,7]
[404776833,1770535704187,3303.11364469,0.0002,7]
[404776834,1770535708241,4340.37669471,0.0002,7]
[404776845,1770535715502,2356.5096606,0.0001,2]
[404776846,1770535715530,7643.5003394,0.0001,2]
[404776850,1770535718923,509.66669628,0.000135,2]
[404776856,1770535807666,500.0,0.00013273,2]
[404776857,1770535807722,813.60155111,0.00013821,2]
[404776858,1770535807762,221.1882638,0.00013699,2]
[404776859,1770535809104,312.04314941,0.00013699,2]
[404776860,1770535809130,188.58036788,0.00013699,2]
[404776861,1770535811059,500.0,0.00013273,2]
[404776862,1770535811092,1000.0,0.00013821,2]
[404776863,1770535811148,1500.0,0.00014368,2]
[404776864,1770535811204,2000.0,0.00014916,2]
[404776865,1770535811262,1500.0,0.00015464,2]
[404776866,1770535819896,500.0,0.00013699,2]
[404776882,1770535832275,-1014.94503828,0.00019602,2]
[404776923,1770535840602,-388.66220874,0.00019602,2]
[404776924,1770535840613,-5000.0,0.000198,2]
[404776925,1770535840623,-167.67504153,0.0002,2]
[404776926,1770535840633,-1957.0,0.00025,2]
[404776927,1770535840644,-5000.0,0.00025,2]
[404776928,1770535840654,-5464.82514694,0.00025102,2]
[404776929,1770535840665,-150.0,0.00025103,2]
[404776930,1770535840674,-1000.0,0.00025438,30]
[404776931,1770535840684,-177.0,0.00027103,2]
[404776932,1770535840694,-150.0,0.0002739,2]
[404776933,1770535840703,-261.43485348,0.00027498,2]
[404776934,1770535840713,-340.67256779,0.00027499,2]
[404776935,1770535840723,-31999.61527825,0.000275,2]
[404776936,1770535840733,-2391.60241409,0.000279,2]
[404776937,1770535840743,-1675.69236782,0.00028,2]
[404776938,1770535840755,-723.36004021,0.00029,2]
[404776939,1770535840766,-204.0,0.00029103,2]
[404776940,1770535840779,-150.0,0.00030082,7]
[404776941,1770535840789,-150.0,0.00030082,7]
[404776942,1770535840804,-486.15480127,0.00030087,2]
[404776943,1770535840815,-150.0,0.00030192,4]
[404776944,1770535840825,-150.0,0.00030192,4]
[404776945,1770535840834,-328.0,0.00030233,4]
[404776946,1770535840847,-312.0,0.00030233,4]
[404776947,1770535840857,-150.0,0.00030288,4]
[404776948,1770535840866,-150.0,0.00030288,4]
[404776949,1770535840875,-213.0,0.00030342,4]
[404776950,1770535840884,-200.0,0.00030342,4]
[404776951,1770535840894,-150.0,0.00030356,6]
[404776952,1770535840903,-150.0,0.00030356,6]
[404776953,1770535840913,-231.0,0.00031103,2]
[404776954,1770535840922,-200.0,0.00032132,120]
[404776955,1770535840932,-258.0,0.00033103,120]
[404776956,1770535840942,-339.9542718,0.00033872,2]
[404776957,1770535840952,-1051.0,0.00034765,30]
[404776958,1770535840961,-645.4129,0.00038,30]
[404776959,1770535840971,-2391.60241403,0.00038186,2]
[404776960,1770535840981,-208.24243359,0.00039612,120]
[404776961,1770535840994,-208.24243359,0.00039612,120]
[404776962,1770535841004,-208.24243359,0.00039612,120]
[404776963,1770535841014,-250.0,0.00039612,10]
[404776964,1770535841023,-250.0,0.00039612,10]
[404776965,1770535841033,-270.429684,0.00039612,10]
[404776966,1770535841044,-2035.00924799,0.00039612,120]
[404776967,1770535841053,-149.999999,0.00039612,14]
[404776968,1770535841063,-270.71111549,0.0004,2]
[404776969,1770535841072,-152.71,0.00041096,120]
[404776970,1770535841082,-600.0,0.0004122,60]
[404776971,1770535841092,-5464.82514694,0.00041478,2]
[404776972,1770535841101,-632.0,0.00041814,2]
[404776973,1770535841111,-2160.0,0.00041814,2]
[404776974,1770535841121,-1374.0,0.00041814,2]
[404776975,1770535841132,-720.0,0.00041814,2]
[404776976,1770535841142,-180.0,0.00041814,2]
[404776977,1770535841151,-421.0,0.00041814,2]
[404776978,1770535841160,-611.5685017,0.00042011,2]
[404776979,1770535841171,-194.8295813,0.00042109,2]
[404776980,1770535841180,-158.829912,0.00042238,60]
[404776981,1770535841190,-126376.59864134,0.000435,120]
[404776982,1770535841202,-9872.01313753,0.000435,120]
[404776983,1770535841213,-16189.44311566,0.000435,120]
[404776984,1770535841225,-3327.71082746,0.000435,120]
[404777021,1770535846108,-283.0,0.00040218,2]
[404777022,1770535846117,-332.0,0.00040581,2]
[404777023,1770535846127,-391.0,0.00041033,2]
[404777024,1770535846136,-2442.338989,0.000435,120]
[404777025,1770535846146,-224.69,0.000435,30]
[404777026,1770535846155,-5880.82,0.000435,14]
[404777028,1770535846165,-898.0,0.000435,60]
[404777030,1770535846174,-350.69324633,0.00044608,2]
[404777031,1770535846183,-632.0,0.00044814,2]
[404777032,1770535846192,-2160.0,0.00044814,2]
[404777033,1770535846201,-1372.0,0.00044814,2]
[404777034,1770535846211,-536.0,0.00044814,2]
[404777035,1770535846221,-180.0,0.00044814,2]
[404777036,1770535846230,-358.293,0.00044814,2]
[404777037,1770535846239,-32614.62249071,0.00045,2]
[404777039,1770535846249,-473.5728047,0.00045,30]
[404777040,1770535846258,-1188.49644045,0.00045,100]
[404777041,1770535846267,-720.0,0.00045342,60]
[404777042,1770535846276,-224.27739491,0.000454,120]
[404777043,1770535846286,-304.98073288,0.00046,30]
[404777044,1770535846295,-393.5100642,0.00046225,2]
[404777045,1770535846304,-150.0,0.00046634,4]
[404777046,1770535846313,-150.0,0.00046634,7]
[404777047,1770535846323,-1121.918,0.00047814,2]
[404777048,1770535846332,-180.0,0.00047814,2]
[404777049,1770535846341,-150.4206448,0.00048,120]
[404777050,1770535846351,-2391.60241403,0.00048471,28]
[404777051,1770535846360,-847.35714512,0.000496,120]
[404777052,1770535846369,-224.69,0.000496,30]
[404777053,1770535846379,-5880.82,0.000496,14]
[404777054,1770535846388,-170.50833561,0.0004987,120]
[404777055,1770535846397,-864.0,0.00049876,120]
[404777056,1770535846407,-155.0,0.0005,120]
[404777057,1770535846416,-160.22683757,0.0005,120]
[404777058,1770535846426,-345.0,0.000502,30]
[404777059,1770535846435,-167.808,0.00050814,120]
[404777060,1770535846443,-155.0,0.000509,120]
[404777061,1770535846453,-211.95631157,0.0005099,90]
[404777062,1770535846462,-155.0,0.000519,120]
[404777063,1770535846471,-10000.0,0.0005198,120]
[404777064,1770535846481,-482.46538414,0.00052,120]
[404777065,1770535846490,-184.99602547,0.00052044,4]
[404777066,1770535846500,-256.45990814,0.00052044,4]
[404777067,1770535846509,-16501.0388582,0.00052044,4]
[404777068,1770535846518,-209.75822894,0.00052044,4]
[404777069,1770535846527,-151.0,0.00052044,120]
[404777070,1770535846536,-151.0,0.00052044,120]